bitfinex/quotes_SOLUSD_20240714
["timestamp","ask_amount","ask_price","bid_price","bid_amount"]
[1720921477340,32.2238,145.4,145.29,6.2059]
[1720921477568,12.86982864,145.39,145.35,11.15]
[1720921478670,11.15,145.37,145.28,15.3137]
[1720921478878,1.72010618,145.36,145.28,15.3137]
[1720921479054,1.72010618,145.36,145.33,11.15]
[1720921479254,1.72010618,145.36,145.28,15.3137]
[1720921479454,1.72010618,145.36,145.33,11.15]
[1720921479856,30.0,145.35,145.33,11.15]
[1720921480172,1.72010108,145.34,145.28,15.3137]
[1720921480477,30.0,145.35,145.33,11.15]
[1720921480863,30.0,145.34,145.33,11.15]
[1720921481879,30.0,145.34,145.28,15.3137]
[1720921482079,1.72010483,145.37,145.33,11.15]
[1720921482465,11.15,145.38,145.33,11.15]
[1720921482668,1.72010074,145.37,145.33,11.15]
[1720921483186,12.87010074,145.37,145.33,11.15]
[1720921484989,12.87010074,145.37,145.28,15.3137]
[1720921485283,11.15,145.36,145.32,11.15]
[1720921485462,11.15,145.37,145.33,11.15]
[1720921485775,1.72011159,145.36,145.32,11.15]
[1720921486465,1.72011159,145.36,145.33,11.15]
[1720921487587,1.72011003,145.37,145.33,11.15]
[1720921490970,11.15,145.38,145.33,11.15]
[1720921491163,1.71995538,145.37,145.33,11.15]
[1720921491369,30.0,145.34,145.33,11.15]
[1720921493301,30.0,145.34,145.32,11.15]
[1720921493467,30.0,145.34,145.33,11.15]
[1720921498604,21.939,145.44,145.33,11.15]
[1720921498794,12.86936892,145.43,145.38,11.15]
[1720921498979,30.0,145.39,145.38,11.15]
[1720921499178,12.86936892,145.43,145.38,11.15]
[1720921500104,12.86936892,145.43,145.34,60.3532]
[1720921500281,12.86936892,145.43,145.38,11.15]
[1720921500677,11.15,145.42,145.38,11.15]
[1720921501107,1.71941124,145.41,145.38,11.15]
[1720921501408,1.71941113,145.41,145.34,60.3532]
[1720921501583,1.71941113,145.41,145.37,11.15]
[1720921502299,1.71941113,145.41,145.34,15.3532]
[1720921502586,11.15,145.4,145.36,11.15]
[1720921502978,11.15,145.4,145.34,15.3532]
[1720921503200,1.71968489,145.39,145.36,11.15]
[1720921503583,1.71968489,145.39,145.35,11.15]
[1720921503890,1.71968489,145.39,145.36,11.15]
[1720921505107,12.8696932,145.43,145.38,11.15]
[1720921505308,1.71959817,145.42,145.38,11.15]
[1720921505483,12.86959817,145.42,145.38,11.15]
[1720921505681,12.86959817,145.42,145.37,11.15]
[1720921505880,11.15,145.41,145.37,11.15]
[1720921506098,1.71959661,145.4,145.37,11.15]
[1720921506600,1.71960069,145.39,145.36,11.15]
[1720921506809,1.71969942,145.4,145.36,11.15]
[1720921507006,1.71969714,145.39,145.36,11.15]
[1720921507308,1.71969627,145.4,145.36,11.15]
[1720921507606,1.71969517,145.39,145.36,11.15]
[1720921507775,1.71969102,145.4,145.36,11.15]
[1720921507982,1.71969094,145.39,145.36,11.15]
[1720921508308,1.71969094,145.39,145.32,50.8008]
[1720921508476,1.71969094,145.39,145.35,11.15]
[1720921509120,1.71969094,145.39,145.32,6.2008]
[1720921509288,1.71969094,145.39,145.35,11.15]
[1720921509490,1.71969094,145.39,145.32,6.2008]
[1720921509792,1.71969094,145.39,145.35,11.15]
[1720921510488,1.71969094,145.39,145.36,11.15]
[1720921511224,1.71979558,145.38,145.36,11.15]
[1720921511514,1.71981916,145.4,145.36,11.15]
[1720921511717,1.71981916,145.39,145.36,11.15]
[1720921511893,1.71981916,145.39,145.32,50.8008]
[1720921512095,1.71981916,145.39,145.36,11.15]
[1720921512294,1.71981809,145.43,145.36,11.15]
[1720921512512,11.15,145.41,145.36,11.15]
[1720921512814,1.71968601,145.4,145.36,11.15]
[1720921513587,11.15,145.41,145.36,11.15]
[1720921513790,1.71960232,145.41,145.38,11.15]
[1720921514505,1.71950603,145.42,145.38,11.15]
[1720921514893,1.71950603,145.42,145.32,71.5108]
[1720921514894,1.71950603,145.42,145.39,11.15]
[1720921516113,1.71939894,145.43,145.4,11.15]
[1720921516299,23.6583013,145.48,145.41,11.15]
[1720921516508,11.15,145.45,145.36,15.3532]
[1720921516801,12.86920096,145.44,145.4,11.15]
[1720921517119,1.71933017,145.43,145.4,11.15]
[1720921517615,11.15,145.45,145.4,11.15]
[1720921517914,1.71907028,145.44,145.4,11.15]
[1720921518121,12.86907028,145.44,145.39,11.15]
[1720921518412,12.86907028,145.44,145.4,11.15]
[1720921518621,1.71907028,145.44,145.41,11.15]
[1720921518792,1.71918026,145.44,145.41,11.15]
[1720921518995,11.15,145.46,145.41,11.15]
[1720921519325,1.71906707,145.47,145.42,11.15]
[1720921519515,1.71906707,145.47,145.43,11.15]
[1720921519720,12.86906707,145.47,145.42,11.15]
[1720921519902,1.71906707,145.47,145.42,11.15]
[1720921520216,11.15,145.46,145.42,11.15]
[1720921520415,1.71894366,145.45,145.42,11.15]
[1720921522227,1.71891654,145.47,145.42,11.15]
[1720921522396,1.71891654,145.47,145.37,27.2244]
[1720921522604,12.86891654,145.47,145.43,11.15]
[1720921524517,12.86891654,145.47,145.39,44.6]
[1720921524703,12.86891654,145.47,145.43,11.15]
[1720921524908,21.939,145.48,145.43,11.15]
[1720921525098,1.71872742,145.47,145.44,11.15]
[1720921525301,12.86872742,145.47,145.43,11.15]
[1720921527106,1.71872742,145.47,145.43,11.15]
[1720921528127,1.71880023,145.47,145.43,11.15]
[1720921530627,2.74342691,145.51,145.46,11.15]
[1720921530628,11.15,145.5,145.46,11.15]
[1720921530804,1.71852511,145.49,145.46,11.15]
[1720921531305,1.71852522,145.51,145.46,11.15]
[1720921531509,12.86852522,145.51,145.46,11.15]
[1720921531706,1.71852522,145.51,145.46,11.15]
[1720921531914,12.86852522,145.51,145.46,11.15]
[1720921532625,1.71852522,145.51,145.46,11.15]
[1720921532817,12.86852522,145.51,145.46,11.15]
[1720921533518,12.86852522,145.51,145.47,11.15]
[1720921533715,1.71852522,145.51,145.47,11.15]
[1720921533904,12.86852522,145.51,145.47,11.15]
[1720921535009,12.86852522,145.51,145.4,37.3464]
[1720921535206,11.15,145.5,145.46,11.15]
[1720921538427,7.05106282,145.53,145.43,26.7925]
[1720921538632,18.20106282,145.53,145.49,11.15]
[1720921539011,8.76916988,145.53,145.49,11.15]
[1720921539217,19.91916988,145.53,145.48,11.15]
[1720921540229,11.15,145.52,145.48,11.15]
[1720921540732,8.76916988,145.53,145.48,11.15]
[1720921541033,12.86817775,145.52,145.48,11.15]
[1720921541431,11.15,145.52,145.48,11.15]
[1720921541819,8.76923445,145.53,145.48,11.15]
[1720921542116,11.15,145.52,145.48,11.15]
[1720921542839,8.76923445,145.53,145.48,11.15]
[1720921543134,12.86808313,145.52,145.48,11.15]
[1720921543336,8.76914548,145.53,145.49,11.15]
[1720921543525,19.91914548,145.53,145.48,11.15]
[1720921544431,19.91914548,145.53,145.49,11.15]
[1720921546142,11.15,145.52,145.45,16.0149]
[1720921546449,12.86838193,145.51,145.46,11.15]
[1720921546616,12.86838193,145.51,145.43,6.0825]
[1720921546812,12.86838193,145.51,145.42,16.0149]
[1720921546813,1.71838193,145.51,145.42,16.0149]
[1720921547016,11.15,145.46,145.42,11.15]
[1720921547217,12.86887467,145.45,145.38,16.0149]
[1720921547443,11.15,145.45,145.41,11.15]
[1720921547639,11.15,145.45,145.38,16.0149]
[1720921547844,11.15,145.45,145.41,11.15]
[1720921548133,11.15,145.46,145.42,11.15]
[1720921548337,11.15,145.47,145.43,11.15]
[1720921548539,1.71871573,145.49,145.42,11.15]
[1720921548753,12.86871408,145.48,145.43,11.15]
[1720921549054,12.86871408,145.48,145.44,11.15]
[1720921549252,1.7186483,145.5,145.46,11.15]
[1720921549427,13.8416944,145.51,145.47,11.15]
[1720921549626,12.86839507,145.51,145.47,11.15]
[1720921549822,1.71839507,145.51,145.47,11.15]
[1720921550150,1.71836101,145.52,145.47,11.15]
[1720921550361,12.86836101,145.52,145.48,11.15]
[1720921551048,1.71821937,145.51,145.48,11.15]
[1720921551227,12.86821937,145.52,145.47,11.15]
[1720921551426,1.71821937,145.52,145.47,11.15]
[1720921551733,12.86821937,145.52,145.48,11.15]
[1720921552348,12.86821937,145.52,145.47,11.15]
[1720921553754,1.71821937,145.52,145.47,11.15]
[1720921554051,12.86821937,145.52,145.47,11.15]
[1720921554836,1.71821937,145.52,145.48,11.15]
[1720921555038,12.86821937,145.52,145.48,11.15]
[1720921555243,1.71821937,145.52,145.48,11.15]
[1720921556542,17.58904057,145.53,145.49,11.15]
[1720921556750,28.73904057,145.53,145.42,36.7249]
[1720921557053,11.15,145.52,145.48,11.15]
[1720921557251,28.73904057,145.53,145.48,11.15]
[1720921558926,11.15,145.52,145.48,11.15]
[1720921559126,12.86824623,145.51,145.43,20.0]
[1720921559323,11.15,145.5,145.43,20.0]
[1720921559544,11.15,145.5,145.46,11.15]
[1720921560132,12.86824623,145.51,145.47,11.15]
[1720921560331,1.71839571,145.5,145.47,11.15]
[1720921560733,12.8683972,145.51,145.47,11.15]
[1720921561132,12.8683972,145.51,145.42,16.0149]
[1720921561462,11.15,145.47,145.42,11.15]
[1720921561630,11.15,145.48,145.43,11.15]
[1720921561834,1.71873993,145.49,145.45,11.15]
[1720921562559,12.8684981,145.5,145.45,11.15]
[1720921562936,1.7184981,145.5,145.46,11.15]
[1720921563159,6.5934,145.52,145.47,11.15]
[1720921563160,1.71841338,145.51,145.47,11.15]
[1720921563459,12.86841338,145.51,145.47,11.15]
[1720921563661,11.15,145.5,145.46,11.15]
[1720921563833,1.71850425,145.49,145.46,11.15]
[1720921564262,1.71850425,145.49,145.45,11.15]
[1720921564567,1.71850425,145.49,145.4,45.0]
[1720921564568,1.71851297,145.49,145.46,11.15]
[1720921564739,1.71851297,145.49,145.45,11.15]
[1720921564740,12.86851297,145.49,145.45,11.15]
[1720921565144,11.15,145.5,145.46,11.15]
[1720921565747,12.86848218,145.51,145.46,11.15]
[1720921566142,1.71848218,145.51,145.46,11.15]
[1720921566453,11.15,145.51,145.46,11.15]
[1720921566656,1.71838262,145.5,145.46,11.15]
[1720921567362,12.86838262,145.5,145.45,11.15]
[1720921567543,1.71848444,145.49,145.43,15.7238]
[1720921567749,1.71848444,145.49,145.45,11.15]
[1720921567949,1.71848444,145.49,145.43,15.7238]
[1720921567950,1.71852971,145.49,145.43,15.7238]
[1720921568356,1.71852971,145.49,145.45,11.15]
[1720921568657,12.86853203,145.52,145.48,11.15]
[1720921568865,1.71827267,145.51,145.48,11.15]
[1720921569670,1.71827267,145.51,145.47,11.15]
[1720921569878,12.86827267,145.51,145.46,11.15]
[1720921570367,1.71827267,145.51,145.45,11.15]
[1720921570576,11.15,145.49,145.45,11.15]
[1720921570863,12.86852946,145.5,145.45,11.15]
[1720921571445,12.86852946,145.5,145.46,11.15]
[1720921571649,1.71851986,145.49,145.46,11.15]
[1720921572475,1.71852623,145.48,145.44,11.15]
[1720921572676,1.71852623,145.48,145.4,15.7238]
[1720921572975,11.15,145.45,145.41,11.15]
[1720921573155,11.15,145.46,145.41,11.15]
[1720921573365,1.71897856,145.45,145.42,11.15]
[1720921573757,11.15,145.46,145.42,11.15]
[1720921574067,12.86891423,145.47,145.42,11.15]
[1720921576150,12.86891423,145.47,145.43,11.15]
[1720921576350,1.71891423,145.47,145.43,11.15]
[1720921576675,12.86891423,145.47,145.43,11.15]
[1720921576984,12.86891423,145.47,145.42,11.15]
[1720921577476,11.15,145.46,145.42,11.15]
[1720921578458,1.71888654,145.45,145.42,11.15]
[1720921578780,12.86898405,145.46,145.42,11.15]
[1720921579556,1.71890037,145.45,145.42,11.15]
[1720921579766,12.86890037,145.45,145.36,22.2714]
[1720921579967,11.15,145.41,145.37,11.15]
[1720921580154,11.15,145.38,145.28,22.2182]
[1720921580357,12.86984504,145.37,145.33,11.15]
[1720921580660,11.15,145.37,145.32,11.15]
[1720921580964,11.15,145.36,145.32,11.15]
[1720921581158,1.71987195,145.4,145.28,22.2182]
[1720921581159,12.8700536,145.35,145.28,22.2182]
[1720921581353,11.15,145.35,145.3,11.15]
[1720921581570,1.72011198,145.38,145.31,11.15]
[1720921581571,11.15,145.36,145.31,11.15]
[1720921581883,1.72010804,145.35,145.31,11.15]
[1720921582061,11.15,145.36,145.31,11.15]
[1720921582259,11.15,145.36,145.32,11.15]
[1720921582480,11.15,145.37,145.32,11.15]
[1720921582781,12.87011026,145.36,145.28,22.2182]
[1720921582986,11.15,145.36,145.31,11.15]
[1720921583188,1.72011033,145.35,145.28,22.2182]
[1720921583659,11.15,145.35,145.31,11.15]
[1720921583859,11.15,145.35,145.3,11.15]
[1720921584060,1.72013422,145.38,145.3,11.15]
[1720921584386,11.15,145.36,145.31,11.15]
[1720921584588,1.72013314,145.35,145.31,11.15]
[1720921585463,12.87013314,145.35,145.31,11.15]
[1720921585782,11.15,145.35,145.31,11.15]
[1720921586487,11.15,145.36,145.31,11.15]
[1720921586989,11.15,145.36,145.24,281.3182]
[1720921586990,11.15,145.32,145.24,281.3182]
[1720921587159,11.15,145.32,145.27,11.15]
[1720921587359,1.72013272,145.35,145.27,11.15]
[1720921587558,11.15,145.32,145.27,11.15]
[1720921587991,1.72039946,145.31,145.24,16.069]
[1720921588165,11.15,145.3,145.25,11.15]
[1720921588485,1.72084883,145.29,145.25,11.15]
[1720921588662,1.72078868,145.34,145.25,11.15]
[1720921588985,11.15,145.31,145.27,11.15]
[1720921589371,1.72056489,145.3,145.27,11.15]
[1720921589555,11.15,145.32,145.27,11.15]
[1720921589757,1.72064649,145.34,145.27,11.15]
[1720921589959,1.72064649,145.34,145.28,11.15]
[1720921590181,11.15,145.33,145.28,11.15]
[1720921591290,1.72047669,145.34,145.28,11.15]
[1720921591468,1.72047669,145.34,145.25,44.6]
[1720921591469,11.15,145.33,145.29,11.15]
[1720921591993,11.15,145.33,145.28,11.15]
[1720921592997,17.82047837,145.38,145.32,11.15]
[1720921593200,11.15,145.37,145.32,11.15]
[1720921593485,17.82047837,145.38,145.31,11.15]
[1720921593486,12.87012293,145.36,145.31,11.15]
[1720921593697,12.87020697,145.35,145.31,11.15]
[1720921593905,11.15,145.35,145.31,11.15]
[1720921594065,1.72020506,145.37,145.31,11.15]
[1720921594669,1.72020506,145.37,145.26,6.1492]
[1720921594869,11.15,145.33,145.29,11.15]
[1720921596088,1.72039806,145.32,145.28,11.15]
[1720921596292,12.87039806,145.32,145.24,16.069]
[1720921596487,1.72054296,145.31,145.27,11.15]
[1720921596689,12.87054296,145.31,145.27,11.15]
[1720921596989,11.15,145.31,145.27,11.15]
[1720921597188,1.72060329,145.3,145.24,16.069]
[1720921597387,12.87060329,145.3,145.25,11.15]
[1720921597572,11.15,145.3,145.25,11.15]
[1720921597774,1.72080252,145.33,145.27,11.15]
[1720921598076,1.72080252,145.33,145.24,16.069]
[1720921598077,1.72063033,145.33,145.29,11.15]
[1720921598277,11.15,145.34,145.29,11.15]
[1720921598485,1.72049334,145.33,145.29,11.15]
[1720921598669,1.72049336,145.32,145.24,38.409]
[1720921598876,1.72049092,145.36,145.25,45.0]
[1720921599077,1.720407,145.35,145.25,45.0]
[1720921601597,1.720407,145.35,145.24,16.069]
[1720921601782,46.720407,145.35,145.24,16.069]
[1720921605492,46.72092538,145.32,145.22,6.1492]
[1720921607484,46.72092538,145.32,145.17,259.1]
[1720921607485,16.6462,145.31,145.18,37.385]
[1720921607703,1.72133363,145.3,145.18,37.385]
[1720921607905,1.72133614,145.29,145.18,37.385]
[1720921608378,1.72133614,145.29,145.2,22.34]
[1720921612221,1.72133614,145.29,145.19,22.34]
[1720921612393,1.72133614,145.29,145.2,45.0]
[1720921615596,1.72112508,145.3,145.21,22.34]
[1720921615794,1.72112508,145.3,145.22,45.0]
[1720921616018,16.6462,145.31,145.22,45.0]
[1720921616312,1.72076089,145.3,145.22,45.0]
[1720921616519,18.3669082,145.31,145.22,45.0]
[1720921617403,1.72081852,145.3,145.22,45.0]
[1720921617805,18.36701651,145.31,145.22,45.0]
[1720921617994,18.36701651,145.31,145.23,43.05]
[1720921617995,16.6462,145.31,145.23,43.05]
[1720921618309,6.4084,145.33,145.24,45.0]
[1720921618616,1.72039363,145.32,145.24,45.0]
[1720921618994,8.12892915,145.33,145.24,45.0]
[1720921619511,1.72044549,145.32,145.24,45.0]
[1720921620604,12.89044549,145.32,145.28,11.17]
[1720921621117,8.12892111,145.33,145.29,11.17]
[1720921621307,16.6462,145.34,145.31,11.17]
[1720921621509,1.72023728,145.36,145.31,11.17]
[1720921621706,1.72023728,145.36,145.25,44.68]
[1720921621707,1.72022125,145.35,145.32,11.17]
[1720921622518,1.72023534,145.36,145.25,20.71]
[1720921622722,8.26654207,145.37,145.28,22.33]
[1720921623031,8.26627873,145.37,145.28,22.33]
[1720921624307,8.26627873,145.37,145.26,22.33]
[1720921624502,15.2286,145.35,145.23,15.045]
[1720921624703,1.72067497,145.34,145.23,15.045]
[1720921624902,46.72067497,145.34,145.23,15.045]
[1720921625798,1.72067497,145.34,145.23,15.045]
[1720921626021,1.72067497,145.34,145.24,45.0]
[1720921626414,46.72067497,145.34,145.23,15.045]
[1720921626710,6.5464,145.33,145.23,15.045]
[1720921626904,1.72066646,145.32,145.19,36.5712]
[1720921627111,15.2286,145.31,145.2,20.0]
[1720921627306,1.72098535,145.3,145.2,42.33]
[1720921627512,1.72103468,145.29,145.2,42.33]
[1720921628421,1.72103086,145.3,145.2,63.04]
[1720921628613,15.2286,145.31,145.21,45.0]
[1720921628614,1.72085316,145.29,145.21,45.0]
[1720921628925,1.72085316,145.29,145.22,20.0]
[1720921629500,1.72090776,145.3,145.22,20.0]
[1720921629813,1.72091156,145.29,145.22,20.0]
[1720921629998,1.72091156,145.3,145.22,20.0]
[1720921630194,1.72091156,145.3,145.18,6.0868]
[1720921630195,23.49586197,145.29,145.16,15.8612]
[1720921630397,23.49586197,145.29,145.16,38.1912]
[1720921630612,45.0,145.28,145.16,38.1912]
[1720921630814,1.72150797,145.27,145.16,38.1912]
[1720921631022,1.72150748,145.26,145.16,38.1912]
[1720921631601,1.72150748,145.26,145.17,20.0]
[1720921634824,1.72144605,145.27,145.18,22.33]
[1720921635001,1.72128836,145.26,145.18,22.33]
[1720921635202,21.775,145.24,145.17,20.0]
[1720921635400,1.72170682,145.23,145.16,20.0]
[1720921636623,1.72170682,145.23,145.15,22.33]
[1720921636836,1.72170682,145.23,145.12,22.33]
[1720921637209,1.72170682,145.23,145.14,22.33]
[1720921638122,1.72170682,145.23,145.15,65.0]
[1720921638521,1.72170682,145.23,145.15,20.0]
[1720921638715,1.72170682,145.23,145.11,2.69822133]
[1720921638915,46.72170682,145.23,145.12,22.33]
[1720921639114,1.72170682,145.23,145.12,22.33]
[1720921639432,1.72170682,145.23,145.1,38.1912]
[1720921639630,46.72170682,145.23,145.1,38.1912]
[1720921639828,30.0,145.22,145.1,38.1912]
[1720921640036,1.72213584,145.21,145.1,38.1912]
[1720921640212,1.72213435,145.2,145.1,38.1912]
[1720921640920,1.72213435,145.2,145.11,20.0]
[1720921641327,1.72213466,145.19,145.11,20.0]
[1720921641528,1.72213632,145.21,145.11,20.0]
[1720921641722,1.72213483,145.2,145.11,20.0]
[1720921641931,1.72213483,145.2,145.12,22.33]
[1720921642127,1.72193562,145.21,145.13,45.0]
[1720921642512,1.72189447,145.23,145.13,45.0]
[1720921644846,1.72189447,145.23,145.14,22.33]
[1720921645026,1.72170426,145.23,145.15,45.0]
[1720921649240,1.72170426,145.23,145.12,22.33]
[1720921649442,1.72170426,145.23,145.13,20.0]
[1720921651969,1.72170426,145.23,145.14,45.0]
[1720921651970,1.72170683,145.23,145.14,45.0]
[1720921653126,1.72170683,145.23,145.13,20.0]
[1720921653341,46.72170683,145.23,145.13,22.33]
[1720921653648,1.72170683,145.23,145.14,20.0]
[1720921653844,1.72170683,145.23,145.15,22.33]
[1720921655945,1.72170683,145.23,145.14,20.0]
[1720921656149,1.72170683,145.23,145.12,22.33]
[1720921656448,1.72170683,145.23,145.13,65.0]
[1720921656636,1.72170683,145.23,145.13,20.0]
[1720921656835,21.5956,145.22,145.12,22.33]
[1720921657147,1.7222397,145.21,145.12,22.33]
[1720921657336,1.72205179,145.2,145.12,22.33]
[1720921658156,15.1572,145.19,145.08,2.73476143]
[1720921658323,1.72229904,145.18,145.1,22.33]
[1720921658527,1.72228075,145.17,145.11,20.0]
[1720921658957,1.72228043,145.18,145.11,20.0]
[1720921659454,15.1572,145.19,145.11,20.0]
[1720921660658,15.1572,145.19,145.12,45.0]
[1720921660840,15.1572,145.19,145.12,67.33]
[1720921661451,15.1572,145.19,145.13,20.0]
[1720921665553,15.1572,145.19,145.12,22.33]
[1720921665742,8.36805004,145.18,145.1,22.33]
[1720921665939,8.36805004,145.18,145.11,20.0]
[1720921666152,8.36816826,145.18,145.11,20.0]
[1720921666539,8.36808927,145.18,145.11,20.0]
[1720921666857,8.36806738,145.18,145.11,20.0]
[1720921667057,8.36806738,145.18,145.1,22.33]
[1720921667447,8.36806738,145.18,145.11,45.0]
[1720921668763,1.72218587,145.17,145.1,22.33]
[1720921670130,8.36824002,145.18,145.11,45.0]
[1720921670835,6.6459,145.18,145.11,45.0]
[1720921672450,8.36799604,145.18,145.1,22.33]
[1720921673160,22.4051,145.23,145.16,22.33]
[1720921673366,22.4051,145.23,145.17,67.33]
[1720921673542,22.4051,145.23,145.17,22.33]
[1720921673853,1.7214939,145.22,145.11,15.3459]
[1720921674064,1.7214939,145.22,145.15,22.33]
[1720921674860,1.7214939,145.22,145.13,22.33]
[1720921675160,1.7214939,145.22,145.14,20.0]
[1720921675541,1.7214939,145.22,145.12,42.33]
[1720921676837,1.7214939,145.22,145.14,22.33]
[1720921677044,22.4051,145.23,145.14,22.33]
[1720921677543,1.72166727,145.22,145.14,22.33]
[1720921678838,1.72166727,145.22,145.12,20.0]
[1720921680966,15.3285,145.21,145.11,22.33]
[1720921681271,52.82264346,145.2,145.09,22.33]
[1720921681975,7.82264346,145.2,145.09,22.33]
[1720921682161,30.0,145.17,145.09,22.33]
[1720921682478,1.72245023,145.16,145.1,20.0]
[1720921682871,31.72242426,145.17,145.1,20.0]
[1720921683050,30.0,145.17,145.11,22.33]
[1720921683457,1.72217652,145.19,145.11,22.33]
[1720921683667,1.72217652,145.19,145.11,21.83]
[1720921685752,7.82240289,145.2,145.11,21.83]
[1720921686667,15.3285,145.19,145.1,20.0]
[1720921686872,15.3285,145.19,145.06,20.0]
[1720921686873,46.72259255,145.18,145.06,20.0]
[1720921687178,46.72259255,145.18,145.05,43.1773678]
[1720921687179,6.1003,145.16,145.05,43.1773678]
[1720921687356,1.72262197,145.15,145.05,43.1773678]
[1720921687566,1.72263168,145.14,145.05,43.1773678]
[1720921688484,1.72263104,145.15,145.05,43.1773678]
[1720921688653,1.72263048,145.14,145.06,45.0]
[1720921688854,1.72263048,145.14,145.07,20.0]
[1720921689453,1.72263022,145.15,145.07,20.0]
[1720921690556,1.7226281,145.14,145.07,42.33]
[1720921690757,15.3285,145.13,145.07,42.33]
[1720921699789,15.3285,145.13,145.08,45.0]
[1720921702297,6.1003,145.16,145.08,45.0]
[1720921702486,7.8227153,145.16,145.09,20.0]
[1720921702667,7.8227153,145.16,145.13,11.19]
[1720921703587,6.1003,145.16,145.13,11.19]
[1720921704165,6.1003,145.16,145.14,11.19]
[1720921704978,7.82261504,145.16,145.12,11.19]
[1720921705365,6.1003,145.16,145.12,11.19]
[1720921705568,7.82265713,145.16,145.12,11.19]
[1720921706178,19.01265713,145.16,145.09,20.0]
[1720921706379,19.01265713,145.16,145.12,11.19]
[1720921707796,19.01265713,145.16,145.09,20.0]
[1720921707993,19.01265713,145.16,145.11,11.19]
[1720921709692,19.01265713,145.16,145.12,11.19]
[1720921709869,6.1003,145.16,145.13,11.19]
[1720921710192,7.82270663,145.16,145.13,11.19]
[1720921710495,7.82270663,145.16,145.12,11.19]
[1720921710990,19.01270663,145.16,145.11,11.19]
[1720921712268,11.19,145.15,145.05,20.8473678]
[1720921712480,1.72267375,145.14,145.1,11.19]
[1720921712684,12.91267375,145.14,145.1,11.19]
[1720921713102,11.19,145.11,145.05,0.8473678]
[1720921713401,11.19,145.11,145.06,11.19]
[1720921713402,1.72305443,145.1,145.06,11.19]
[1720921714279,12.91305443,145.1,145.05,0.8473678]
[1720921714472,12.9133337,145.09,145.05,12.0373678]
[1720921714806,1.72326476,145.08,145.05,0.8473678]
[1720921714983,1.72325758,145.11,145.05,0.8473678]
[1720921715187,1.72325758,145.1,145.05,0.8473678]
[1720921716296,15.1966,145.09,145.05,0.8473678]
[1720921716495,1.72352968,145.08,145.05,0.8473678]
[1720921716697,1.72353079,145.07,145.05,0.8473678]
[1720921717195,6.0428,145.06,145.05,0.8473678]
[1720921720602,63.5637,145.06,144.92,27.35118752]
[1720921720791,1.72395643,145.05,144.94,22.41]
[1720921720997,1.72395649,145.04,144.94,22.41]
[1720921722117,1.72395649,145.04,144.95,20.0]
[1720921722290,1.72403282,145.04,144.95,20.0]
[1720921723189,1.72394975,145.05,144.96,67.41]
[1720921723384,1.72394975,145.05,144.97,20.0]
[1720921723780,18.5637,145.06,144.97,20.0]
[1720921723781,12.5209,145.06,144.98,22.41]
[1720921724007,12.5209,145.06,145.0,22.41]
[1720921724186,12.5209,145.06,144.99,65.0]
[1720921724398,12.5209,145.06,145.0,22.41]
[1720921724589,17.69688847,145.09,145.0,22.41]
[1720921727490,17.69688847,145.09,145.01,45.0]
[1720921728118,17.69688847,145.09,145.0,22.41]
[1720921728311,17.69688847,145.09,144.99,20.0]
[1720921729611,17.69688847,145.09,145.0,45.0]